bitfinex/quotes_ETHUSD_20250925
["timestamp","ask_amount","ask_price","bid_price","bid_amount"]
[1758826892749,0.25359415,3943.3,3942.5,0.02536461]
[1758826893050,3.5341898,3946.1,3942.5,0.02536461]
[1758826893051,0.6968,3944.8,3943.0,1.73166046]
[1758826893208,0.6968,3944.8,3943.6,1.28813912]
[1758826893413,0.6968,3945.2,3943.6,1.28813912]
[1758826893714,0.6968,3945.2,3943.7,1.28813912]
[1758826893914,3.23152695,3945.2,3943.7,1.28813912]
[1758826894218,0.3231527,3945.1,3943.7,1.28813912]
[1758826894418,2.53442268,3945.7,3943.9,1.28813912]
[1758826894419,2.53465361,3945.4,3943.9,1.28813912]
[1758826894661,0.2318,3945.3,3944.0,2.114]
[1758826895363,0.465,3945.4,3944.1,5.085]
[1758826895647,2.53466149,3945.3,3944.1,1.28813912]
[1758826895838,0.465,3945.4,3944.2,4.661]
[1758826896042,0.2318,3945.7,3944.2,6.46103607]
[1758826896252,0.465,3945.6,3944.2,1.28813912]
[1758826896430,2.114,3946.2,3943.9,0.0413]
[1758826896431,2.5349822,3944.9,3943.9,2.114]
[1758826896638,2.53505743,3944.7,3943.9,2.114]
[1758826896949,0.50697982,3944.8,3943.6,1.28813912]
[1758826897252,2.53517475,3944.6,3944.5,0.1264]
[1758826897561,0.2318,3945.0,3943.6,1.28813912]
[1758826897562,0.2318,3945.0,3943.7,1.28813912]
[1758826897734,2.5349185,3944.9,3944.8,0.1264]
[1758826898046,2.5349185,3944.9,3943.6,3.49719461]
[1758826898047,0.6968,3944.9,3943.8,2.113]
[1758826898255,0.6968,3944.9,3944.5,0.1264]
[1758826898256,3.23172981,3944.9,3944.5,0.1264]
[1758826898444,0.58929705,3944.9,3944.5,0.1264]
[1758826898630,2.53494098,3944.9,3944.0,0.0413]
[1758826898842,2.53494098,3944.9,3944.8,0.1264]
[1758826899049,2.534868,3945.0,3944.8,0.1264]
[1758826899262,0.001,3945.3,3944.8,0.1264]
[1758826899446,2.53567129,3945.3,3944.0,0.0413]
[1758826899762,0.001,3945.3,3945.2,0.1264]
[1758826900375,2.53566149,3945.3,3945.2,0.1264]
[1758826900558,2.78922764,3945.3,3945.2,0.1264]
[1758826900866,2.78922764,3945.3,3943.5,0.55034186]
[1758826900867,0.95136615,3945.3,3943.5,0.55034186]
[1758826901046,2.53490763,3945.0,3944.8,0.1264]
[1758826901462,0.001,3945.3,3944.8,0.1264]
[1758826901768,2.53494242,3944.9,3944.1,2.113]
[1758826902076,2.53472574,3945.2,3943.5,0.50904186]
[1758826902367,0.465,3945.0,3943.4,0.0413]
[1758826902672,0.465,3945.0,3943.5,3.0]
[1758826902673,2.53525146,3944.4,3943.5,3.0]
[1758826902892,0.6968,3944.3,3942.7,2.113]
[1758826903040,0.465,3944.3,3942.7,3.0]
[1758826903383,2.53581832,3943.6,3942.7,5.075]
[1758826903535,2.53581832,3943.6,3942.8,2.113]
[1758826903736,2.53589395,3943.4,3942.9,2.113]
[1758826903945,2.53580036,3943.6,3942.3,0.0413]
[1758826904146,2.53583971,3943.5,3942.9,2.113]
[1758826904371,0.6968,3943.9,3942.9,2.113]
[1758826904873,0.6968,3943.9,3943.0,0.02536139]
[1758826905074,0.39761162,3944.7,3943.1,0.0414]
[1758826905244,0.2318,3944.8,3943.1,0.0414]
[1758826905670,0.465,3944.7,3941.7,3.0]
[1758826905876,0.465,3944.7,3942.8,3.0]
[1758826905877,2.53549886,3944.0,3942.8,3.0]
[1758826906063,0.6968,3944.2,3942.8,3.0]
[1758826906245,0.6968,3944.2,3942.7,0.0414]
[1758826906446,2.5354987,3944.0,3942.8,3.105]
[1758826906775,0.2318,3943.9,3942.3,1.2931564]
[1758826906959,0.6968,3943.9,3942.9,2.113]
[1758826907164,0.6968,3943.9,3942.4,3.0]
[1758826907165,2.53578975,3943.6,3942.3,1.2931564]
[1758826907471,3.23241998,3943.9,3942.5,3.0]
[1758826907841,2.53573482,3943.7,3942.5,3.0]
[1758826908183,3.00056764,3943.9,3942.5,3.0]
[1758826908468,2.53570503,3943.7,3942.5,3.0414]
[1758826908839,0.465,3943.9,3942.6,0.02536397]
[1758826909041,0.465,3943.9,3942.5,0.0414]
[1758826909274,0.465,3943.9,3940.2,2.681]
[1758826909275,0.2264,3943.8,3941.4,0.0414]
[1758826909572,2.53621565,3942.9,3941.8,3.0]
[1758826909773,3.1943569,3942.9,3941.7,2.113]
[1758826909981,2.53671054,3942.2,3941.3,2.113]
[1758826910202,0.6581,3942.3,3941.1,7.182]
[1758826910406,2.53602553,3943.2,3941.1,7.182]
[1758826910699,2.53660063,3942.3,3941.2,3.0]
[1758826910908,0.25360255,3943.1,3941.2,3.0]
[1758826910909,2.53677102,3942.1,3941.2,3.0]
[1758826911095,2.53677102,3942.1,3941.1,7.182]
[1758826911096,0.4317,3942.4,3941.1,2.113]
[1758826911289,0.4317,3942.4,3940.5,6.6444]
[1758826911290,0.2264,3942.1,3940.5,0.0414]
[1758826911589,0.4317,3942.0,3941.8,0.1264]
[1758826911765,0.1264,3942.4,3941.8,0.1264]
[1758826911766,0.2264,3942.3,3941.8,0.1264]
[1758826911967,2.83566474,3945.9,3940.7,3.0]
[1758826911968,0.2264,3944.0,3942.1,0.792]
[1758826912169,0.4317,3943.5,3942.2,2.113]
[1758826912480,4.59880836,3945.8,3942.4,3.792]
[1758826912666,2.53511129,3944.6,3942.4,0.792]
[1758826912864,3.19316461,3944.7,3942.6,0.792]
[1758826913100,0.6581,3944.7,3942.8,0.792]
[1758826913274,2.53531079,3944.3,3942.9,5.113]
[1758826913478,0.6581,3944.7,3942.9,2.113]
[1758826913804,2.53512717,3944.6,3943.0,0.85876139]
[1758826913981,0.6581,3944.7,3943.0,0.85876139]
[1758826914184,0.6581,3944.7,3943.0,0.8334]
[1758826914382,0.001,3945.3,3942.9,2.113]
[1758826914383,0.2264,3945.2,3943.2,0.792]
[1758826914598,0.2264,3945.2,3943.3,0.0414]
[1758826914801,0.2264,3945.2,3943.4,10.97]
[1758826914998,0.2264,3945.2,3943.6,0.792]
[1758826915202,0.001,3944.6,3943.6,0.792]
[1758826915579,0.001,3944.6,3943.7,5.16457557]
[1758826915774,0.001,3944.6,3943.8,3.81735625]
[1758826915968,0.001,3944.6,3943.8,0.8334]
[1758826916418,0.001,3944.6,3944.0,0.792]
[1758826916727,0.001,3944.6,3944.1,3.22440912]
[1758826916889,0.001,3944.6,3944.2,7.40140912]
[1758826917218,0.001,3944.6,3944.3,0.22440912]
[1758826917431,0.001,3944.6,3944.4,0.22440912]
[1758826917601,0.001,3944.6,3944.5,0.22440912]
[1758826917801,0.001,3944.6,3944.5,5.28640912]
[1758826918006,0.001,3944.6,3944.5,7.174]
[1758826918506,0.001,3944.6,3944.5,9.34193152]
[1758826918818,0.001,3944.6,3944.5,7.174]
[1758826919883,0.001,3944.6,3944.5,9.34193152]
[1758826920191,0.001,3944.6,3944.5,7.2154]
[1758826920703,0.001,3944.6,3944.5,9.38333152]
[1758826921424,0.001,3944.6,3944.5,11.0074]
[1758826921624,0.001,3944.6,3944.5,3.8334]
[1758826921798,0.001,3944.6,3944.5,3.0]
[1758826922001,0.001,3944.6,3944.5,10.2964]
[1758826922239,0.001,3944.6,3944.5,3.1264]
[1758826922414,0.001,3944.6,3944.5,5.29451774]
[1758826922610,0.001,3944.6,3944.5,3.1264]
[1758826922810,0.001,3944.6,3944.5,10.2954]
[1758826923225,0.001,3944.6,3944.5,0.1264]
[1758826923642,0.668,3944.6,3943.9,2.723]
[1758826923940,0.667,3944.5,3943.9,2.723]
[1758826924136,0.001,3944.6,3943.9,2.723]
[1758826924329,0.001,3944.6,3944.0,0.02535496]
[1758826924638,0.001,3944.6,3944.0,3.02535496]
[1758826924936,0.001,3944.6,3944.0,3.0]
[1758826925344,0.001,3944.6,3943.2,0.0414]
[1758826925345,0.667,3944.5,3943.8,5.054]
[1758826925640,3.20219097,3944.5,3943.6,5.054]
[1758826925941,0.2277,3944.4,3942.8,0.0414]
[1758826926108,0.2277,3944.4,3942.9,2.112]
[1758826926109,2.53563166,3943.8,3942.9,2.112]
[1758826926307,0.4393,3944.2,3943.1,3.0]
[1758826926516,0.2277,3944.5,3943.1,3.0]
[1758826926815,0.2277,3944.5,3943.2,0.792]
[1758826927014,0.667,3944.4,3943.1,3.0]
[1758826927214,2.53538694,3944.2,3943.1,3.0]
[1758826927438,0.667,3944.3,3943.1,3.0]
[1758826927738,2.53548568,3944.1,3943.1,3.0]
[1758826927948,0.667,3944.0,3942.5,6.601]
[1758826928103,0.667,3943.9,3942.3,2.112]
[1758826928301,0.667,3943.9,3941.6,6.601]
[1758826928302,2.779,3943.8,3941.6,2.112]
[1758826928535,5.718,3943.7,3941.7,0.02536976]
[1758826928738,2.53632427,3942.8,3941.3,0.02537233]
[1758826928964,7.83,3943.7,3941.3,0.02537233]
[1758826928965,2.53646031,3942.6,3941.3,0.09970892]
[1758826929168,2.53646987,3942.5,3941.2,1.8124]
[1758826929341,0.4393,3942.7,3941.2,1.87157798]
[1758826929668,2.53625042,3942.9,3941.3,0.06677233]
[1758826929853,2.53601136,3943.2,3941.4,0.792]
[1758826930053,2.5361559,3943.0,3941.5,0.02537105]
[1758826930268,0.667,3943.9,3941.7,0.792]
[1758826930434,2.53568117,3943.8,3941.9,3.792]
[1758826930638,0.667,3943.7,3941.5,0.792]
[1758826930834,0.001,3944.6,3941.5,0.792]
[1758826930835,0.667,3943.6,3942.1,3.0]
[1758826931034,0.2277,3943.5,3942.2,0.792]
[1758826931265,0.2277,3943.5,3942.2,0.81736654]
[1758826931469,2.53606372,3943.2,3942.1,5.05]
[1758826931668,0.2277,3943.1,3941.7,0.792]
[1758826931865,0.2277,3943.1,3941.8,1.225]
[1758826932051,0.2277,3943.1,3941.9,3.0]
[1758826932256,0.4393,3943.0,3941.6,0.0414]
[1758826932468,2.76390431,3942.9,3941.7,2.587]
[1758826932670,0.2277,3942.9,3941.7,2.587]
[1758826932969,0.2277,3942.9,3941.8,3.02536912]
[1758826933338,0.2277,3942.9,3941.8,3.0]
[1758826933535,0.2277,3942.9,3942.8,0.1264]
[1758826933845,2.76390431,3942.9,3942.8,0.1264]
[1758826934060,3.20320431,3942.9,3942.8,0.1264]
[1758826934432,0.667,3942.9,3942.8,0.1264]
[1758826934776,2.53606084,3943.2,3942.8,0.1264]
[1758826935081,0.667,3943.2,3941.9,0.792]
[1758826935368,0.667,3943.2,3943.1,0.1264]
[1758826935666,0.667,3943.6,3943.1,0.1264]
[1758826935870,0.667,3943.5,3942.1,0.792]
[1758826936254,0.667,3943.5,3943.4,0.1264]
[1758826936435,3.20281843,3943.5,3943.4,0.1264]
[1758826936768,3.20281843,3943.5,3941.8,3.002]
[1758826936769,3.98786942,3943.5,3941.9,2.112]
[1758826936973,0.667,3943.4,3943.1,0.1264]
[1758826937148,2.53625832,3942.9,3941.8,0.002]
[1758826937484,3.20294559,3943.4,3942.9,0.1264]
[1758826937647,2.53613739,3943.1,3942.9,0.1264]
[1758826938150,3.21243999,3943.0,3942.9,0.1264]
[1758826938477,0.6763,3943.0,3941.8,0.002]
[1758826938764,2.113,3942.9,3941.8,0.002]
[1758826938953,2.53666162,3942.2,3941.8,0.002]
[1758826939337,0.6763,3942.1,3941.8,0.002]
[1758826939677,2.53639733,3942.6,3941.8,0.002]
[1758826939973,2.53658994,3942.4,3941.8,0.002]
[1758826940270,0.2383,3942.5,3941.8,0.002]
[1758826940473,1.33895452,3946.6,3941.8,0.002]
[1758826940474,2.53666066,3942.2,3941.8,0.002]
[1758826940668,0.438,3942.3,3941.8,0.002]
[1758826940841,0.6763,3942.1,3941.8,0.002]
[1758826941240,2.53673849,3942.1,3941.8,0.002]
[1758826941576,2.53684771,3941.9,3941.8,0.002]
[1758826941977,3.21314771,3941.9,3941.8,0.002]
[1758826942337,3.7881344,3941.9,3941.8,0.002]
[1758826943275,0.6763,3941.9,3941.8,0.002]
[1758826943862,2.53683776,3942.0,3941.8,0.002]
[1758826944059,2.53682736,3942.0,3941.8,0.002]
[1758826944267,0.6763,3942.3,3941.8,0.002]
[1758826944268,2.53673505,3942.1,3941.8,0.002]
[1758826944461,0.6763,3942.3,3941.8,0.002]
[1758826944665,2.113,3942.6,3941.8,0.002]
[1758826944865,2.53684771,3941.9,3941.8,0.002]
[1758826945356,3.21314771,3941.9,3941.8,0.002]
[1758826949780,8.24814771,3941.9,3941.8,0.002]
[1758826950350,3.21314771,3941.9,3941.8,0.002]
[1758826950645,5.90113593,3941.9,3941.8,0.002]
[1758826950961,10.93613593,3941.9,3941.8,0.002]
[1758826952085,5.90113593,3941.9,3941.8,0.002]
[1758826952289,10.93413593,3941.9,3941.8,0.002]
[1758826953192,3.78813593,3941.9,3941.8,0.002]
[1758826953401,10.93513593,3941.9,3941.8,0.002]
[1758826953697,6.605,3943.5,3941.8,0.002]
[1758826953698,0.2383,3945.0,3941.8,0.002]
[1758826953899,0.67919209,3944.9,3942.2,0.792]
[1758826954119,0.2383,3944.5,3942.2,0.792]
[1758826954322,1.344,3944.6,3942.4,0.792]
[1758826954323,0.6763,3944.2,3942.4,0.792]
[1758826954523,2.53581646,3943.6,3942.4,0.792]
[1758826954674,0.905,3944.1,3942.3,0.0414]
[1758826954675,2.5360082,3943.3,3942.3,0.0414]
[1758826954872,2.53581843,3943.5,3942.3,2.113]
[1758826955403,2.53581843,3943.5,3942.1,2.113]
[1758826955604,0.2383,3943.6,3941.9,0.0414]
[1758826955805,0.2383,3943.6,3942.1,2.113]
[1758826956007,2.53581843,3943.5,3942.1,2.113]
[1758826956311,2.53601809,3943.2,3942.1,2.113]
[1758826956806,2.5360809,3943.1,3942.1,2.113]
[1758826957472,2.53615771,3943.0,3942.1,2.113]
[1758826957679,0.2383,3943.6,3941.9,2.1544]
[1758826957680,2.53625323,3942.9,3941.9,2.1544]
[1758826957878,0.6763,3943.3,3941.9,2.113]
[1758826958106,2.53613492,3943.1,3941.9,2.113]
[1758826958698,2.53601858,3943.2,3941.9,2.113]
[1758826959486,2.53609918,3943.1,3941.9,2.113]
[1758826959688,0.6763,3943.7,3941.9,2.113]
[1758826959882,0.6763,3943.7,3942.0,0.0414]
[1758826960111,2.53494019,3944.9,3942.1,0.81736719]
[1758826960289,2.53570189,3943.7,3942.3,0.792]
[1758826960487,0.2383,3944.2,3942.4,0.0414]
[1758826960671,5.2663,3944.2,3942.4,0.0414]
[1758826960983,0.438,3944.3,3942.4,0.0414]
[1758826961321,2.53568681,3943.8,3942.4,0.0414]
[1758826961480,0.2383,3944.2,3942.4,0.0414]
[1758826961807,2.114,3944.6,3942.4,0.0414]
[1758826961808,2.53562614,3943.8,3942.4,0.0414]
[1758826962110,0.6763,3944.1,3942.5,5.113]
[1758826962324,0.6763,3944.1,3942.6,2.113]
[1758826962705,2.53576307,3943.6,3942.7,2.113]
[1758826963106,0.6763,3944.0,3942.7,2.113]
[1758826963375,0.6763,3944.0,3942.0,0.792]
[1758826963577,2.53600169,3943.3,3942.2,0.792]
[1758826963773,0.2383,3943.6,3942.0,0.0414]
[1758826964090,0.438,3943.5,3942.2,3.0]
[1758826964409,2.53605826,3943.2,3942.2,2.113]
[1758826964616,0.2383,3943.6,3942.3,0.0253659]
[1758826964781,2.53593475,3943.4,3943.2,0.1264]
[1758826964983,2.53568986,3943.7,3942.4,0.0414]
[1758826965182,2.53562553,3943.8,3943.7,0.1264]
[1758826965614,3.21192553,3943.8,3943.7,0.1264]
[1758826967081,2.77392553,3943.8,3943.7,0.1264]
[1758826967808,2.53562553,3943.8,3943.7,0.1264]
[1758826968013,0.438,3944.1,3943.7,0.1264]
[1758826968223,2.53517556,3944.5,3943.7,0.1264]
[1758826968513,2.9311,3945.3,3944.0,0.1264]
[1758826968704,2.5349179,3945.0,3944.4,0.1264]
[1758826968902,2.5349179,3945.0,3944.5,0.1264]
[1758826969283,2.53492129,3944.9,3944.5,0.1264]
[1758826969483,2.53499051,3944.8,3944.5,0.1264]
[1758826969679,2.53499374,3944.8,3944.5,0.1264]
[1758826969896,2.53473496,3945.2,3944.5,0.1264]
[1758826970211,2.53463884,3945.4,3944.5,0.1264]
[1758826970523,2.3558,3945.7,3944.5,0.1678]
[1758826970709,2.53467341,3945.3,3944.5,0.1678]
[1758826971039,2.53452473,3945.6,3940.7,0.002]
[1758826971040,2.53684771,3941.9,3940.7,0.002]
[1758826971193,10.22000843,3941.9,3940.7,0.002]
[1758826971388,10.28794771,3941.9,3941.2,0.1264]
[1758826971684,5.5953,3941.9,3941.2,0.1264]
[1758826971993,2.53684771,3941.9,3940.8,0.168]
[1758826972193,2.53684771,3941.9,3941.7,0.1264]
[1758826972400,2.98574771,3941.9,3941.7,0.1264]
[1758826972714,2.53684771,3941.9,3941.7,0.1264]
[1758826973690,3.22854771,3941.9,3940.7,0.002]
[1758826973888,4.51827602,3941.9,3941.5,0.1264]
[1758826974191,2.53704079,3941.6,3940.7,0.002]
[1758826974391,2.53710516,3941.5,3941.2,0.1264]
[1758826974784,7.55610516,3941.5,3941.2,0.1264]
[1758826974984,8.24780516,3941.5,3941.2,0.1264]
[1758826975596,9.2524034,3941.5,3940.7,0.002]
[1758826975800,9.2524034,3941.5,3941.0,0.1264]
[1758826976019,2.53729828,3941.2,3940.7,0.002]
[1758826976525,3.22899828,3941.2,3940.7,0.002]
[1758826976728,10.36099828,3941.2,3940.7,0.002]
[1758826977038,3.22899828,3941.2,3940.7,0.002]
[1758826977217,11.03807876,3941.2,3940.7,0.002]
[1758826978239,0.39791969,3942.1,3940.7,0.002]
[1758826978529,2.53729828,3941.2,3940.7,0.002]
[1758826978729,2.98619828,3941.2,3940.7,0.002]
[1758826978947,3.22899828,3941.2,3940.7,0.002]
[1758826980127,5.34199828,3941.2,3940.7,0.002]
[1758826980558,8.06670446,3941.2,3940.7,0.002]
[1758826980757,3.04770446,3941.2,3940.7,0.002]
[1758826980909,8.06670446,3941.2,3940.7,0.002]
[1758826981113,9.51558477,3941.2,3940.7,0.002]
[1758826981514,4.49658477,3941.2,3940.7,0.002]
[1758826981850,11.62758477,3941.2,3940.7,0.002]
[1758826984118,11.62758477,3941.2,3938.9,0.792]
[1758826984119,2.53834429,3939.6,3939.0,0.168]
[1758826984350,9.09028649,3941.2,3938.6,0.168]
[1758826984351,5.018,3939.7,3938.6,0.168]
[1758826984565,2.411,3939.6,3938.6,0.168]
[1758826984741,5.018,3939.6,3938.6,0.168]
[1758826985294,2.53763034,3940.7,3938.1,0.10365588]
[1758826985295,0.39802221,3941.0,3938.7,13.09373319]
[1758826985451,1.19,3943.2,3938.7,13.09373319]
[1758826985452,5.2538,3942.7,3938.8,3.96]
[1758826985652,0.90482328,3943.6,3938.8,3.96]
[1758826985653,0.6853,3942.1,3938.9,5.185]
[1758826985949,2.53749143,3940.9,3940.8,0.1264]
[1758826986113,2.53749143,3940.9,3938.1,0.09959987]
[1758826986114,0.431,3940.9,3939.6,0.168]
[1758826986312,2.53768461,3940.6,3940.5,0.1264]
[1758826986931,2.53763311,3940.7,3940.5,0.1264]
[1758826987139,0.4495,3940.9,3940.5,0.1264]
[1758826987140,7.55468461,3940.6,3940.5,0.1264]
[1758826987852,2.53808157,3940.0,3939.2,0.168]
[1758826988027,5.017,3939.9,3939.2,0.168]
[1758826988432,7.55513548,3939.9,3939.8,0.1264]
[1758826989170,5.017,3939.9,3939.8,0.1264]
[1758826989541,7.55513548,3939.9,3939.8,0.1264]
[1758826989750,2.5381999,3939.8,3938.7,0.168]
[1758826990045,2.53838639,3939.6,3939.5,0.1264]
[1758826990446,3.22368639,3939.6,3939.5,0.1264]
[1758826991450,2.53839319,3939.5,3939.4,0.002]
[1758826991672,8.24069319,3939.5,3939.4,0.002]
[1758826992363,5.7023,3939.5,3939.4,0.002]
[1758826992564,8.36709319,3939.5,3939.4,0.002]
[1758826993473,8.36709319,3939.5,3939.0,0.002]
[1758826993474,13.95074119,3939.5,3939.0,0.002]
[1758826993671,2.53865096,3939.1,3939.0,0.002]
[1758826993974,7.55565096,3939.1,3939.0,0.002]
[1758826994149,8.24095096,3939.1,3939.0,0.002]
[1758826994348,10.35495096,3939.1,3939.0,0.002]
[1758826995252,10.11915096,3939.1,3939.0,0.002]
[1758826995452,10.35495096,3939.1,3939.0,0.002]
[1758826995660,11.80919293,3939.1,3939.0,0.002]
[1758826996492,2.53962326,3937.6,3937.3,0.168]
[1758826996689,2.53962326,3937.6,3937.0,0.002]
[1758826996690,5.017,3937.5,3937.0,0.002]
[1758826997190,5.016,3937.4,3937.1,0.168]
[1758826997372,2.53994056,3937.1,3937.0,0.002]
[1758826997800,2.53987605,3937.2,3937.0,0.002]
[1758826997976,5.016,3937.1,3937.0,0.002]
[1758826998285,7.55594056,3937.1,3937.0,0.002]
[1758826998587,7.55694056,3937.1,3937.0,0.002]
[1758826999781,2.53965974,3937.6,3937.0,0.002]
[1758826999782,0.6743,3938.1,3937.0,0.002]
[1758826999993,0.2356,3938.5,3937.0,0.17]
[1758827000152,2.115,3938.2,3937.0,0.17]
[1758827000357,2.53954326,3937.8,3937.0,0.002]
[1758827000687,2.53993393,3937.2,3937.0,0.002]
[1758827000986,7.55594056,3937.1,3937.0,0.002]
[1758827001861,2.97864056,3937.1,3937.0,0.002]
[1758827002061,7.99464056,3937.1,3937.0,0.002]
[1758827002262,7.55594056,3937.1,3937.0,0.002]
[1758827002964,0.4387,3938.2,3937.0,0.002]
[1758827003164,2.53972507,3937.5,3937.0,0.17]
[1758827003498,2.115,3938.0,3937.0,0.002]
[1758827003499,2.53994056,3937.1,3937.0,0.002]
[1758827003803,5.016,3937.3,3937.1,0.1264]
[1758827004213,2.53987605,3937.2,3937.1,0.1264]
[1758827004432,5.016,3937.3,3937.0,0.002]
[1758827004583,5.016,3937.4,3937.2,0.1264]
[1758827004784,2.53964636,3937.6,3937.2,0.1264]
[1758827004978,0.2356,3938.4,3937.2,0.2944]
[1758827004979,5.016,3937.5,3937.2,0.2944]
[1758827005183,2.53975684,3937.4,3937.0,0.002]
[1758827005416,5.016,3937.5,3937.4,0.1264]
[1758827005417,7.55568649,3937.5,3937.4,0.1264]
[1758827006028,2.53993563,3937.2,3937.0,0.002]
[1758827006316,5.016,3937.3,3937.1,0.168]
[1758827006610,0.1264,3938.1,3937.0,0.006]
[1758827006611,2.53960971,3937.7,3937.4,0.1264]
[1758827006910,0.1264,3938.1,3937.4,0.1264]
[1758827007213,0.67747275,3939.9,3937.6,0.1264]
[1758827007214,5.015,3938.0,3937.6,0.1264]
[1758827007400,3.29942038,3938.0,3937.2,0.168]
[1758827007602,3.29942038,3938.0,3937.9,0.1264]
[1758827008124,2.53942038,3938.0,3937.9,0.1264]
[1758827008284,7.55442038,3938.0,3937.9,0.1264]
[1758827008683,6.69867001,3938.0,3937.1,0.002]
[1758827009036,2.53987605,3937.2,3937.1,0.002]
[1758827009187,2.53983337,3937.3,3937.1,0.002]
[1758827009495,7.55474768,3937.4,3937.2,0.1264]
[1758827009816,5.015,3937.4,3937.2,0.1264]
[1758827010018,2.53981154,3937.3,3937.2,0.1264]
[1758827010185,5.014,3937.3,3937.2,0.1264]
[1758827010513,2.53955354,3937.7,3937.2,0.1264]
[1758827010721,2.53917479,3938.3,3937.1,0.002]
[1758827010936,2.53966949,3937.6,3937.5,0.1264]
[1758827011233,2.53961804,3937.6,3937.5,0.1264]
[1758827011431,7.55355648,3937.7,3937.5,0.1264]
[1758827011580,2.53961804,3937.6,3937.5,0.1264]
[1758827013215,5.014,3937.7,3937.5,0.1264]
[1758827013629,3.21391804,3937.6,3937.5,0.1264]
[1758827013810,2.53987605,3937.2,3937.1,0.002]
[1758827014131,5.013,3937.3,3937.2,0.1264]
[1758827014286,7.55281154,3937.3,3937.2,0.1264]
[1758827014486,8.22711154,3937.3,3937.2,0.1264]
[1758827014722,2.53987605,3937.2,3937.1,0.002]
[1758827014894,3.21417605,3937.2,3937.1,0.002]
[1758827016216,2.53987605,3937.2,3937.1,0.002]
[1758827016420,7.99057605,3937.2,3937.1,0.002]
[1758827016618,3.21417605,3937.2,3937.1,0.002]
[1758827016923,7.55187605,3937.2,3937.1,0.1284]
[1758827017220,8.22617605,3937.2,3937.1,0.002]
[1758827017423,9.31540861,3937.2,3937.1,0.002]
[1758827018422,7.55187605,3937.2,3937.1,0.002]
[1758827018627,3.21417605,3937.2,3937.1,0.002]
[1758827018925,8.22517605,3937.2,3937.1,0.002]
[1758827020001,2.53987605,3937.2,3937.1,0.002]
[1758827020405,7.54987605,3937.2,3937.1,0.002]
[1758827020608,8.22417605,3937.2,3937.1,0.002]
[1758827020928,9.52480861,3937.2,3937.1,0.002]
[1758827021230,3.84050861,3937.2,3937.1,0.002]
[1758827021530,7.54987605,3937.2,3937.1,0.002]
[1758827021697,2.93772963,3937.9,3937.1,0.002]
[1758827022027,0.1264,3937.7,3937.1,0.002]
[1758827022225,2.53987605,3937.2,3937.1,0.002]
[1758827022424,7.54887605,3937.2,3937.1,0.002]
[1758827023301,5.009,3937.2,3937.1,0.002]
[1758827023501,0.1264,3937.7,3937.1,0.002]
[1758827023502,5.009,3937.7,3937.1,0.2964]
[1758827023728,2.53961804,3937.6,3937.5,0.1264]
[1758827024131,2.53955906,3937.7,3937.5,0.1264]
[1758827024426,2.53961804,3937.6,3937.5,0.1264]
[1758827024926,2.53957064,3937.7,3937.5,0.1264]
[1758827025109,7.54749774,3937.8,3937.5,0.1264]
[1758827025302,2.53956025,3937.7,3937.5,0.1264]
[1758827025517,7.54653179,3937.8,3937.5,0.1264]
[1758827025705,5.007,3937.8,3937.5,0.1264]
[1758827025906,7.54650085,3937.8,3937.5,0.1264]
[1758827026120,5.007,3937.9,3937.5,0.168]
[1758827026306,5.007,3937.9,3937.1,0.006]
[1758827026307,5.007,3938.0,3937.7,0.1264]
[1758827026518,0.6743,3937.9,3937.1,0.002]
[1758827026720,2.539534,3937.8,3937.5,0.1264]
[1758827026899,2.5394265,3937.9,3937.7,0.1264]
[1758827027230,2.53935289,3938.1,3937.7,0.1264]
[1758827027414,5.006,3938.0,3937.7,0.1264]
[1758827027607,7.54536692,3938.0,3937.7,0.1264]
[1758827027808,5.006,3938.0,3937.7,0.1264]
[1758827028195,2.53948905,3937.8,3937.7,0.1264]
[1758827028805,7.54437534,3938.0,3937.7,0.1264]
[1758827029046,7.54436908,3938.0,3937.7,0.1264]
[1758827029332,2.53902399,3938.6,3937.5,0.002]
[1758827029495,5.005,3938.5,3938.1,0.1264]
[1758827029892,2.53918245,3938.3,3938.1,0.1264]
[1758827030125,2.53923112,3938.2,3938.1,0.1264]
[1758827030498,5.005,3938.5,3938.1,0.1264]
[1758827030702,0.001,3939.0,3938.1,0.168]
[1758827030912,0.001,3939.0,3937.5,3.002]
[1758827030913,2.53931992,3938.1,3937.5,3.002]
[1758827031233,2.53916664,3938.3,3937.5,0.002]
[1758827031432,2.53916664,3938.3,3938.0,0.1264]
[1758827031433,2.53929559,3938.1,3938.0,0.1264]
[1758827031943,3.21189559,3938.1,3938.0,0.1264]
[1758827032128,2.53961804,3937.6,3937.5,0.002]
[1758827032741,8.21521804,3937.6,3937.5,0.002]
[1758827034000,7.54161804,3937.6,3937.5,0.002]
[1758827034615,8.21421804,3937.6,3937.5,0.002]
[1758827035233,9.30223376,3937.6,3937.5,0.002]
[1758827036506,8.21421804,3937.6,3937.5,0.002]
[1758827036707,7.54161804,3937.6,3937.5,0.002]
[1758827037239,7.53961804,3937.6,3937.5,0.002]
[1758827037732,2.53961804,3937.6,3937.5,0.002]
[1758827037899,7.53961804,3937.6,3937.5,0.002]
[1758827038324,7.53861804,3937.6,3937.5,0.002]
[1758827038805,8.21121804,3937.6,3937.5,0.002]
[1758827039417,7.98071804,3937.6,3937.5,0.002]